fUST/lending_fUST_20250826
["ID","MTS","AMOUNT","RATE_DAILY","PERIOD"]
[381361655,1756152650134,-480.0,0.00041095,30]
[381361656,1756152650144,-480.0,0.00041095,30]
[381361657,1756152650154,-480.0,0.00041095,30]
[381361658,1756152650164,-480.0,0.00041095,30]
[381361659,1756152650173,-480.35249051,0.00041095,30]
[381361660,1756152650183,-480.0,0.00041095,30]
[381361661,1756152650193,-496.04,0.00041095,30]
[381361662,1756152650203,-480.0,0.00041095,30]
[381361663,1756152650213,-480.0,0.00041095,30]
[381361664,1756152650224,-480.0,0.00041095,30]
[381361665,1756152650233,-739.68,0.00041095,30]
[381361666,1756152650243,-480.0,0.00041095,30]
[381361667,1756152650252,-480.0,0.00041095,30]
[381361668,1756152650262,-480.0,0.00041095,30]
[381361669,1756152650272,-480.0,0.00041095,30]
[381361670,1756152650283,-480.0,0.00041095,30]
[381361671,1756152650293,-480.23284918,0.00041095,30]
[381361672,1756152650304,-480.0,0.00041095,30]
[381361673,1756152650313,-638.29,0.00041095,30]
[381361674,1756152650323,-480.0,0.00041095,30]
[381361675,1756152650333,-581.22,0.00041095,30]
[381361676,1756152650343,-560.02,0.00041095,30]
[381361677,1756152650357,-480.0,0.00041095,30]
[381361678,1756152650367,-480.0,0.00041095,30]
[381361679,1756152650376,-719.69,0.00041095,20]
[381361680,1756152650386,-645.17,0.00041095,30]
[381361681,1756152650396,-480.0,0.00041095,30]
[381361682,1756152650406,-480.0,0.00041095,30]
[381361683,1756152650416,-1206.79,0.00041095,30]
[381361684,1756152650427,-549.56,0.00041095,30]
[381361685,1756152650436,-480.50094717,0.00041095,30]
[381361686,1756152650446,-480.0,0.00041095,30]
[381361687,1756152650456,-480.0,0.00041095,30]
[381361688,1756152650466,-480.0,0.00041095,30]
[381361689,1756152650476,-480.0,0.00041095,2]
[381361690,1756152650486,-480.0,0.00041095,30]
[381361691,1756152650496,-480.63425034,0.00041095,30]
[381361692,1756152650507,-532.65,0.00041095,30]
[381361693,1756152650518,-553.32345402,0.00041095,30]
[381361694,1756152650528,-877.31,0.00041095,30]
[381361695,1756152650542,-552.66,0.00041095,30]
[381361696,1756152650552,-480.0,0.00041095,30]
[381361697,1756152650562,-480.0,0.00041095,30]
[381361698,1756152650572,-480.0,0.00041095,30]
[381361699,1756152650582,-480.0,0.00041095,30]
[381361700,1756152650592,-480.0,0.00041095,30]
[381361701,1756152650602,-932.35,0.00041095,30]
[381361702,1756152650612,-1351.17,0.00041095,30]
[381361703,1756152650621,-480.0,0.00041095,30]
[381361704,1756152650631,-607.28261774,0.00041095,30]
[381361705,1756152650640,-480.0,0.00041095,30]
[381361706,1756152650650,-480.0,0.00041095,30]
[381361707,1756152650659,-480.0,0.00041095,30]
[381361708,1756152650669,-707.92,0.00041095,30]
[381361709,1756152650679,-480.0,0.00041095,30]
[381361710,1756152650689,-480.0,0.00041095,30]
[381361711,1756152650699,-480.0,0.00041095,30]
[381361712,1756152650708,-1106.36,0.00041095,30]
[381361713,1756152650718,-480.0,0.00041095,30]
[381361714,1756152650728,-480.0,0.00041095,30]
[381361715,1756152650738,-276.81,0.00041095,30]
[381361716,1756152650748,-480.0,0.00041095,30]
[381361717,1756152650759,-480.0,0.00041095,7]
[381361718,1756152650770,-480.0,0.00041095,30]
[381361719,1756152650780,-480.0,0.00041095,30]
[381361720,1756152650794,-480.0,0.00041095,30]
[381361721,1756152650804,-480.0,0.00041095,30]
[381361722,1756152650815,-480.0,0.00041095,30]
[381361723,1756152650826,-480.0,0.00041095,30]
[381361724,1756152650837,-480.0,0.00041095,30]
[381361725,1756152650847,-480.0,0.00041095,30]
[381361726,1756152651036,-495.6,0.00041095,30]
[381361727,1756152651059,-599.94078453,0.00041095,30]
[381361728,1756152651070,-480.0,0.00041095,30]
[381361729,1756152651081,-480.0,0.00041095,30]
[381361730,1756152651092,-857.72,0.00041095,30]
[381361731,1756152651103,-480.0,0.00041095,30]
[381361732,1756152651113,-480.0,0.00041095,30]
[381361733,1756152651123,-480.0,0.00041095,30]
[381361734,1756152651132,-480.0,0.00041095,30]
[381361735,1756152651142,-674.65,0.00041095,7]
[381361736,1756152651152,-538.19,0.00041095,30]
[381361737,1756152651162,-946.55,0.00041095,30]
[381361738,1756152651171,-480.0,0.00041095,30]
[381361739,1756152651180,-480.0,0.00041095,30]
[381361740,1756152651190,-480.0,0.00041095,30]
[381361741,1756152651200,-480.0,0.00041095,30]
[381361742,1756152651210,-480.0,0.00041095,30]
[381361743,1756152651220,-480.0,0.00041095,30]
[381361744,1756152651229,-480.0,0.00041095,30]
[381361745,1756152651238,-480.0,0.00041095,30]
[381361746,1756152651248,-872.01,0.00041095,30]
[381361747,1756152651257,-1670.95,0.00041095,30]
[381361748,1756152651266,-480.0,0.00041095,30]
[381361749,1756152651276,-480.0,0.00041095,30]
[381361750,1756152651289,-455.39529739,0.00041095,30]
[381361751,1756152651298,-855.21,0.00041095,30]
[381361752,1756152651308,-480.0,0.00041095,30]
[381361753,1756152651317,-480.0,0.00041095,30]
[381361754,1756152651327,-480.0,0.00041095,30]
[381361755,1756152651336,-486.62,0.00041095,30]
[381361756,1756152651351,-480.0,0.00041095,30]
[381361757,1756152651360,-480.0,0.00041095,30]
[381361758,1756152651369,-930.32,0.00041095,30]
[381361759,1756152651378,-480.0,0.00041095,30]
[381361760,1756152651390,-480.0,0.00041095,30]
[381361761,1756152651400,-480.0,0.00041095,30]
[381361762,1756152651410,-480.0,0.00041095,30]
[381361763,1756152651419,-875.77,0.00041095,30]
[381361764,1756152651429,-480.0,0.00041095,30]
[381361765,1756152651440,-724.54,0.00041095,30]
[381361766,1756152651449,-493.58,0.00041095,30]
[381361767,1756152651459,-480.0,0.00041095,30]
[381361768,1756152651468,-480.0,0.00041095,30]
[381361769,1756152651478,-526.55,0.00041095,30]
[381361770,1756152651488,-498.82,0.00041095,30]
[381361771,1756152651498,-1014.9,0.00041095,30]
[381361772,1756152651507,-409.82546609,0.00041095,30]
[381361773,1756152651517,-480.0,0.00041095,30]
[381361774,1756152651526,-714.61,0.00041095,30]
[381361775,1756152651537,-480.0,0.00041095,30]
[381361776,1756152651548,-1963.21,0.00041095,30]
[381361777,1756152651558,-480.0,0.00041095,30]
[381361778,1756152651567,-480.0,0.00041095,30]
[381361779,1756152651576,-480.0,0.00041095,30]
[381361780,1756152651586,-423.32833823,0.00041095,30]
[381361781,1756152651595,-480.0,0.00041095,30]
[381361782,1756152651605,-577.0,0.00041095,30]
[381361783,1756152651615,-480.0,0.00041095,30]
[381361784,1756152651625,-480.0,0.00041095,30]
[381361785,1756152651634,-480.0,0.00041095,30]
[381361786,1756152651644,-480.0,0.00041095,30]
[381361787,1756152651654,-480.0,0.00041095,30]
[381361788,1756152651663,-480.0,0.00041095,30]
[381361789,1756152651672,-480.0,0.00041095,30]
[381361790,1756152651682,-619.39,0.00041095,30]
[381361791,1756152651691,-2675.47,0.00041095,30]
[381361792,1756152651701,-480.0,0.00041095,30]
[381361793,1756152651710,-480.0,0.00041095,30]
[381361794,1756152651719,-537.47,0.00041095,30]
[381361795,1756152651729,-480.0,0.00041095,30]
[381361796,1756152651738,-480.0,0.00041095,30]
[381361797,1756152651748,-978.9,0.00041095,30]
[381361798,1756152651757,-756.79,0.00041095,30]
[381361799,1756152651767,-668.37,0.00041095,30]
[381361800,1756152651776,-480.0,0.00041095,30]
[381361801,1756152651788,-480.0,0.00041095,30]
[381361802,1756152651798,-1162.95,0.00041095,120]
[381361803,1756152651807,-480.0,0.00041095,30]
[381361804,1756152651817,-480.0,0.00041095,30]
[381361805,1756152651827,-480.0,0.00041095,30]
[381361806,1756152651837,-480.0,0.00041095,30]
[381361807,1756152651846,-245.63442114,0.00041095,30]
[381361808,1756152651856,-542.61,0.00041095,30]
[381361809,1756152651866,-480.0,0.00041095,30]
[381361810,1756152651875,-480.0,0.00041095,2]
[381361811,1756152651884,-960.31,0.00041095,30]
[381361812,1756152651894,-2047.25,0.00041095,30]
[381361813,1756152651904,-2329.59,0.00041095,30]
[381361814,1756152651914,-480.0,0.00041095,30]
[381361815,1756152651924,-2693.19,0.00041095,30]
[381361816,1756152651933,-480.0,0.00041095,30]
[381361817,1756152651942,-480.0,0.00041095,30]
[381361818,1756152651952,-791.73,0.00041095,30]
[381361819,1756152651962,-480.0,0.00041095,5]
[381361820,1756152651971,-480.0,0.00041095,30]
[381361821,1756152651981,-480.0,0.00041095,30]
[381361822,1756152651991,-480.0,0.00041095,30]
[381361823,1756152652000,-480.0,0.00041095,30]
[381361824,1756152652010,-480.0,0.00041095,30]
[381361825,1756152652019,-480.0,0.00041095,30]
[381361826,1756152652029,-480.0,0.00041095,30]
[381361827,1756152652040,-480.0,0.00041095,30]
[381361828,1756152652050,-480.0,0.00041095,30]
[381361829,1756152652060,-480.0,0.00041095,30]
[381361830,1756152652069,-640.48,0.00041095,30]
[381361831,1756152652079,-1838.64,0.00041095,30]
[381361832,1756152652088,-480.0,0.00041095,30]
[381361833,1756152652098,-480.0,0.00041095,30]
[381361834,1756152652107,-480.0,0.00041095,30]
[381361835,1756152652117,-1092.85,0.00041095,30]
[381361836,1756152652126,-480.0,0.00041095,30]
[381361837,1756152652136,-480.0,0.00041095,30]
[381361838,1756152652145,-945.0,0.00041095,30]
[381361839,1756152652154,-480.0,0.00041095,30]
[381361840,1756152652165,-734.73,0.00041095,30]
[381361841,1756152652174,-480.0,0.00041095,30]
[381361842,1756152652183,-480.0,0.00041095,30]
[381361843,1756152652193,-480.0,0.00041095,30]
[381361844,1756152652203,-520.51,0.00041095,30]
[381361845,1756152652213,-480.0,0.00041095,30]
[381361846,1756152652222,-480.0,0.00041095,30]
[381361847,1756152652232,-688.14,0.00041095,14]
[381361848,1756152652242,-480.0,0.00041095,30]
[381361849,1756152652252,-758.24,0.00041095,30]
[381361850,1756152652261,-480.0,0.00041095,30]
[381361851,1756152652271,-480.0,0.00041095,30]
[381361852,1756152652281,-480.0,0.00041095,30]
[381361853,1756152652295,-670.28,0.00041095,30]
[381361854,1756152652305,-616.53,0.00041095,30]
[381361855,1756152652314,-593.88,0.00041095,30]
[381361856,1756152652324,-811.64,0.00041095,30]
[381361857,1756152652333,-1120.71,0.00041095,30]
[381361858,1756152652343,-1904.07,0.00041095,30]
[381361859,1756152652355,-480.0,0.00041095,30]
[381361860,1756152652365,-482.42,0.00041095,30]
[381361861,1756152652375,-1028.95,0.00041095,30]
[381361862,1756152652385,-3549.11,0.00041095,30]
[381361863,1756152652395,-480.0,0.00041095,30]
[381361864,1756152652404,-501.71,0.00041095,30]
[381361865,1756152652414,-480.0,0.00041095,30]
[381361866,1756152652425,-480.0,0.00041095,30]
[381361867,1756152652435,-632.76,0.00041095,30]
[381361868,1756152652444,-624.32,0.00041095,30]
[381361869,1756152652453,-480.0,0.00041095,30]
[381361870,1756152652464,-658.1,0.00041095,30]
[381361871,1756152652473,-480.0,0.00041095,30]
[381361872,1756152652484,-556.17,0.00041095,30]
[381361873,1756152652493,-2118.91,0.00041095,30]
[381361874,1756152652503,-823.49,0.00041095,30]
[381361875,1756152652512,-1925.53,0.00041095,30]
[381361876,1756152652522,-480.0,0.00041095,30]
[381361877,1756152652531,-480.0,0.00041095,30]
[381361878,1756152652543,-480.0,0.00041095,30]
[381361879,1756152652553,-1475.33,0.00041095,30]
[381361880,1756152652562,-480.57503293,0.00041095,30]
[381361881,1756152652572,-878.72,0.00041095,30]
[381361882,1756152652582,-1297.22,0.00041095,30]
[381361883,1756152652591,-1074.69,0.00041095,30]
[381361884,1756152652600,-495.13,0.00041095,30]
[381361885,1756152652610,-480.0,0.00041095,30]
[381361886,1756152652619,-480.0,0.00041095,30]
[381361887,1756152652629,-2598.98,0.00041095,30]
[381361888,1756152652639,-480.0,0.00041095,30]
[381361889,1756152652649,-480.0,0.00041095,30]
[381361890,1756152652659,-480.0,0.00041095,30]
[381361891,1756152652669,-642.85,0.00041095,30]
[381361892,1756152652678,-530.23,0.00041095,30]
[381361893,1756152652688,-480.0,0.00041095,30]
[381361894,1756152652698,-480.0,0.00041095,30]
[381361895,1756152652707,-891.16,0.00041095,30]
[381361896,1756152652716,-920.64,0.00041095,30]
[381361897,1756152652726,-480.0,0.00041095,30]
[381361898,1756152652735,-408.80838135,0.00041095,30]
[381361899,1756152652745,-480.0,0.00041095,30]
[381361900,1756152652755,-8154.31,0.00041095,30]
[381361901,1756152652764,-874.46,0.00041095,30]
[381361902,1756152652774,-480.0,0.00041095,30]
[381361903,1756152652788,-727.89,0.00041095,30]
[381361904,1756152652798,-480.0,0.00041095,30]
[381361905,1756152652807,-480.0,0.00041095,30]
[381361906,1756152652817,-337.03552988,0.00041095,30]
[381361907,1756152652826,-480.0,0.00041095,30]
[381361908,1756152652836,-480.0,0.00041095,30]
[381361909,1756152652845,-537.81,0.00041095,30]
[381361910,1756152652856,-186.50004816,0.00041095,30]
[381361911,1756152652866,-545.7,0.00041095,30]
[381361912,1756152652876,-480.0,0.00041095,30]
[381361913,1756152652886,-715.46,0.00041095,30]
[381361914,1756152652896,-480.0,0.00041095,30]
[381361915,1756152652906,-480.0,0.00041095,30]
[381361916,1756152652916,-480.0,0.00041095,30]
[381361917,1756152652925,-825.51,0.00041095,30]
[381361918,1756152652935,-480.0,0.00041095,30]
[381361919,1756152652945,-547.94,0.00041095,30]
[381361920,1756152652955,-776.86,0.00041095,30]
[381361921,1756152652964,-728.28,0.00041095,30]
[381361922,1756152652974,-480.0,0.00041095,30]
[381361923,1756152652983,-480.0,0.00041095,30]
[381361924,1756152652993,-480.0,0.00041095,30]
[381361925,1756152653003,-1022.39,0.00041095,30]
[381361926,1756152653012,-550.13,0.00041095,30]
[381361927,1756152653022,-605.46,0.00041095,30]
[381361928,1756152653033,-480.0,0.00041095,30]
[381361929,1756152653045,-529.83,0.00041095,30]
[381361930,1756152653055,-480.0,0.00041095,30]
[381361931,1756152653064,-1234.95,0.00041095,30]
[381361932,1756152653074,-1353.9,0.00041095,30]
[381361933,1756152653083,-480.0,0.00041095,30]
[381361934,1756152653093,-636.31,0.00041095,30]
[381361935,1756152653102,-480.0,0.00041095,30]
[381361936,1756152653112,-884.3,0.00041095,30]
[381361937,1756152653121,-480.0,0.00041095,30]
[381361938,1756152653131,-577.31597979,0.00041095,30]
[381361939,1756152653140,-480.0,0.00041095,30]
[381361940,1756152653150,-679.23,0.00041095,30]
[381361941,1756152653160,-1237.38,0.00041095,30]
[381361942,1756152653170,-480.0,0.00041095,30]
[381361943,1756152653179,-875.02,0.00041095,30]
[381361944,1756152653189,-1188.07,0.00041095,30]
[381361945,1756152653198,-1589.59,0.00041095,30]
[381361946,1756152653208,-604.83,0.00041095,30]
[381361947,1756152653217,-929.85,0.00041095,30]
[381361948,1756152653226,-480.0,0.00041095,30]
[381361949,1756152653236,-480.0,0.00041095,30]
[381361950,1756152653246,-975.16,0.00041095,30]
[381361951,1756152653255,-731.69,0.00041095,30]
[381361952,1756152653265,-480.0,0.00041095,30]
[381361953,1756152653274,-555.36,0.00041095,30]
[381361954,1756152653284,-889.13,0.00041095,30]
[381361955,1756152653297,-1201.13,0.00041095,30]
[381361956,1756152653306,-682.04,0.00041095,30]
[381361957,1756152653316,-2272.24,0.00041095,30]
[381361958,1756152653326,-480.0,0.00041095,30]
[381361959,1756152653335,-547.43938802,0.00041095,30]
[381361960,1756152653345,-760.06,0.00041095,30]
[381361961,1756152653358,-2145.95,0.00041095,30]
[381361962,1756152653368,-480.0,0.00041095,30]
[381361963,1756152653378,-748.37,0.00041095,30]
[381361964,1756152653388,-480.0,0.00041095,30]
[381361965,1756152653398,-916.4,0.00041095,30]
[381361966,1756152653407,-480.0,0.00041095,30]
[381361967,1756152653416,-480.0,0.00041095,30]
[381361968,1756152653481,-1140.08,0.00041095,30]
[381361969,1756152653491,-3539.8,0.00041095,30]
[381361970,1756152653500,-480.0,0.00041095,30]
[381361971,1756152653509,-1609.4,0.00041095,30]
[381361972,1756152653520,-1005.92,0.00041095,30]
[381361973,1756152653529,-618.76,0.00041095,30]
[381361974,1756152653540,-480.0,0.00041095,30]
[381361975,1756152653548,-480.0,0.00041095,30]
[381361976,1756152653558,-561.22,0.00041095,30]
[381361977,1756152653567,-1851.09,0.00041095,30]
[381361978,1756152653577,-720.42,0.00041095,30]
[381361979,1756152653586,-480.0,0.00041095,30]
[381361980,1756152653597,-533.72,0.00041095,30]
[381361981,1756152653606,-480.0,0.00041095,30]
[381361982,1756152653616,-480.0,0.00041095,30]
[381361983,1756152653626,-624.04,0.00041095,30]
[381361984,1756152653635,-727.83,0.00041095,30]
[381361985,1756152653644,-751.93,0.00041095,30]
[381361986,1756152653654,-480.0,0.00041095,30]
[381361987,1756152653664,-480.0,0.00041095,30]
[381361988,1756152653673,-1003.66,0.00041095,30]
[381361989,1756152653682,-564.78,0.00041095,30]
[381361990,1756152653692,-480.0,0.00041095,30]
[381361991,1756152653701,-480.0,0.00041095,30]
[381361992,1756152653710,-1702.63,0.00041095,30]
[381361993,1756152653719,-716.16,0.00041095,30]
[381361994,1756152653729,-1651.41,0.00041095,30]
[381361995,1756152653739,-982.03,0.00041095,30]
[381361996,1756152653748,-1900.11,0.00041095,30]
[381361997,1756152653757,-480.0,0.00041095,30]
[381361998,1756152653767,-480.0,0.00041095,30]
[381361999,1756152653777,-807.1,0.00041095,30]
[381362000,1756152653790,-808.96,0.00041095,30]
[381362001,1756152653800,-480.0,0.00041095,30]
[381362002,1756152653809,-957.03,0.00041095,30]
[381362003,1756152653818,-781.49,0.00041095,30]
[381362004,1756152653827,-480.0,0.00041095,30]
[381362005,1756152653837,-480.0,0.00041095,30]
[381362006,1756152653847,-1349.78,0.00041095,30]
[381362007,1756152653857,-480.0,0.00041095,30]
[381362008,1756152653867,-480.0,0.00041095,30]
[381362009,1756152653877,-480.0,0.00041095,30]
[381362010,1756152653886,-480.0,0.00041095,30]
[381362011,1756152653896,-1191.61,0.00041095,30]
[381362012,1756152653906,-480.0,0.00041095,30]
[381362013,1756152653915,-2213.7,0.00041095,30]
[381362014,1756152653925,-480.0,0.00041095,30]
[381362015,1756152653934,-224.74331913,0.00041095,30]
[381362016,1756152653943,-480.0,0.00041095,30]
[381362017,1756152653953,-920.67,0.00041095,30]
[381362018,1756152653962,-480.0,0.00041095,2]
[381362019,1756152653972,-1613.77,0.00041095,30]
[381362020,1756152653981,-480.0,0.00041095,30]
[381362021,1756152653990,-480.0,0.00041095,30]
[381362022,1756152654001,-480.0,0.00041095,30]
[381362023,1756152654011,-605.49,0.00041095,30]
[381362024,1756152654020,-480.0,0.00041095,30]
[381362025,1756152654029,-446.54051509,0.00041095,30]
[381362026,1756152654042,-2022.86,0.00041095,30]
[381362027,1756152654051,-480.0,0.00041095,30]
[381362028,1756152654060,-759.92,0.00041095,30]
[381362029,1756152654069,-674.9,0.00041095,30]
[381362030,1756152654079,-480.0,0.00041095,30]
[381362031,1756152654088,-480.0,0.00041095,30]
[381362032,1756152654097,-1725.78,0.00041095,30]
[381362033,1756152654107,-480.92170268,0.00041095,30]
[381362034,1756152654117,-480.0,0.00041095,30]
[381362035,1756152654126,-575.37,0.00041095,30]
[381362036,1756152654136,-480.644988,0.00041095,30]
[381362037,1756152654146,-701.59,0.00041095,30]
[381362038,1756152654155,-480.0,0.00041095,30]
[381362039,1756152654164,-480.0,0.00041095,30]
[381362040,1756152654173,-480.0,0.00041095,30]
[381362041,1756152654185,-480.0,0.00041095,30]
[381362042,1756152654195,-480.0,0.00041095,30]
[381362043,1756152654206,-1613.96,0.00041095,30]
[381362044,1756152654217,-480.0,0.00041095,30]
[381362045,1756152654227,-1209.0,0.00041095,30]
[381362046,1756152654238,-952.17,0.00041095,30]
[381362047,1756152654248,-373.39413201,0.00041095,30]
[381362048,1756152654258,-480.0,0.00041095,30]
[381362049,1756152654268,-480.0,0.00041095,30]
[381362050,1756152654278,-1066.33,0.00041095,30]
[381362051,1756152654292,-480.0,0.00041095,30]
[381362052,1756152654301,-528.17,0.00041095,30]
[381362053,1756152654311,-660.25,0.00041095,30]
[381362054,1756152654321,-1109.9,0.00041095,30]
[381362055,1756152654331,-480.0,0.00041095,30]
[381362056,1756152654342,-563.65,0.00041095,30]
[381362057,1756152654353,-480.0,0.00041095,30]
[381362058,1756152654365,-2401.37,0.00041095,30]
[381362059,1756152654375,-916.64,0.00041095,30]
[381362060,1756152654385,-480.0,0.00041095,30]
[381362061,1756152654395,-773.04,0.00041095,30]
[381362062,1756152654405,-480.0,0.00041095,30]
[381362063,1756152654415,-480.0,0.00041095,30]
[381362064,1756152654426,-920.34,0.00041095,30]
[381362065,1756152654436,-480.0,0.00041095,30]
[381362066,1756152654448,-480.0,0.00041095,30]
[381362067,1756152654458,-8358.94,0.00041095,30]
[381362068,1756152654468,-480.0,0.00041095,30]
[381362069,1756152654478,-573.78,0.00041095,30]
[381362070,1756152654489,-1000.0,0.00041095,30]
[381362071,1756152654499,-480.0,0.00041095,30]
[381362072,1756152654510,-480.0,0.00041095,30]
[381362073,1756152654520,-1043.57,0.00041095,30]
[381362074,1756152654529,-4052.72,0.00041095,30]
[381362075,1756152654543,-1322.39,0.00041095,30]
[381362076,1756152654552,-480.0,0.00041095,30]
[381362077,1756152654562,-696.24,0.00041095,30]
[381362078,1756152654572,-1995.41,0.00041095,30]
[381362079,1756152654582,-480.0,0.00041095,30]
[381362080,1756152654592,-480.0,0.00041095,30]
[381362081,1756152654603,-480.0,0.00041095,30]
[381362082,1756152654613,-480.0,0.00041095,30]
[381362083,1756152654623,-1157.95,0.00041095,30]
[381362084,1756152654633,-863.73,0.00041095,30]
[381362085,1756152654642,-480.0,0.00041095,30]
[381362086,1756152654652,-1056.73,0.00041095,30]
[381362087,1756152654661,-792.62,0.00041095,30]
[381362088,1756152654671,-480.0,0.00041095,30]
[381362089,1756152654680,-480.0,0.00041095,30]
[381362090,1756152654690,-2007.86,0.00041095,30]
[381362091,1756152654700,-856.6,0.00041095,30]
[381362092,1756152654710,-1085.54,0.00041095,30]
[381362093,1756152654719,-549.23,0.00041095,30]
[381362094,1756152654730,-480.0,0.00041095,30]
[381362095,1756152654739,-1328.13,0.00041095,30]
[381362096,1756152654748,-480.0,0.00041095,30]
[381362097,1756152654762,-480.0,0.00041095,30]
[381362098,1756152654772,-480.0,0.00041095,30]
[381362099,1756152654782,-505.82,0.00041095,30]
[381362100,1756152654794,-480.0,0.00041095,30]
[381362101,1756152654803,-614.07,0.00041095,30]
[381362102,1756152654813,-2828.42,0.00041095,30]
[381362103,1756152654823,-480.0,0.00041095,30]
[381362104,1756152654833,-480.0,0.00041095,30]
[381362105,1756152654842,-480.0,0.00041095,30]
[381362106,1756152654852,-545.63,0.00041095,30]
[381362107,1756152654862,-480.0,0.00041095,30]
[381362108,1756152654873,-480.0,0.00041095,30]
[381362109,1756152654882,-480.0,0.00041095,30]
[381362110,1756152654892,-1355.01,0.00041095,30]
[381362111,1756152654902,-480.0,0.00041095,30]
[381362112,1756152654912,-3055.69,0.00041095,30]
[381362113,1756152654922,-751.4,0.00041095,30]
[381362114,1756152654933,-575.62,0.00041095,30]
[381362115,1756152654944,-480.0,0.00041095,30]
[381362116,1756152654953,-2736.96,0.00041095,30]
[381362117,1756152654963,-2736.96,0.00041095,30]
[381362118,1756152654973,-2736.96,0.00041095,30]
[381362119,1756152654983,-2736.96,0.00041095,30]
[381362120,1756152654993,-1459.77,0.00041095,30]
[381362121,1756152655003,-2736.96,0.00041095,30]
[381362122,1756152655013,-2736.96,0.00041095,30]
[381362123,1756152655024,-938.69787635,0.00041095,30]
[381362124,1756152655062,-1798.26212365,0.00041095,30]
[381362125,1756152655072,-2736.96,0.00041095,30]
[381362126,1756152655083,-223.81401171,0.00041095,30]
[381362127,1756152655093,-2736.96,0.00041095,30]
[381362128,1756152655103,-480.0,0.00041095,30]
[381362129,1756152655113,-2736.96,0.00041095,30]
[381362130,1756152655124,-2736.96,0.00041095,30]
[381362131,1756152655134,-588.39,0.00041095,30]
[381362132,1756152655144,-480.0,0.00041095,30]
[381362133,1756152655154,-2736.96,0.00041095,30]
[381362134,1756152655164,-2736.96,0.00041095,30]
[381362135,1756152655174,-2736.96,0.00041095,30]
[381362136,1756152655184,-2736.96,0.00041095,30]
[381362137,1756152655194,-590.35,0.00041095,30]
[381362138,1756152655204,-2736.96,0.00041095,30]
[381362139,1756152655214,-480.0,0.00041095,30]
[381362140,1756152655224,-2736.96,0.00041095,30]
[381362141,1756152655235,-2736.96,0.00041095,30]
[381362142,1756152655246,-2736.96,0.00041095,30]
[381362143,1756152655256,-2736.96,0.00041095,30]
[381362144,1756152655267,-2736.96,0.00041095,30]
[381362145,1756152655277,-1226.79,0.00041095,30]
[381362146,1756152655291,-2736.96,0.00041095,30]
[381362147,1756152655303,-2736.96,0.00041095,30]
[381362148,1756152655313,-2737.05829671,0.00041095,30]
[381362149,1756152655323,-1192.07,0.00041095,30]
[381362150,1756152655334,-480.0,0.00041095,30]
[381362151,1756152655347,-480.0,0.00041095,30]
[381362152,1756152655362,-480.0,0.00041095,30]
[381362153,1756152655372,-3625.56,0.00041095,30]
[381362154,1756152655382,-1264.01,0.00041095,30]